fUST/lending_fUST_20250713
["ID","MTS","AMOUNT","RATE_DAILY","PERIOD"]
[371543796,1752342664986,-460.0,0.00018356,2]
[371543797,1752342664995,-460.0,0.00018356,2]
[371543798,1752342665007,-460.0,0.00018356,2]
[371543799,1752342665016,-460.0,0.00018356,2]
[371543800,1752342665026,-593.56,0.00018356,2]
[371543801,1752342665036,-1824.88,0.00018356,2]
[371543802,1752342665045,-460.0,0.00018356,2]
[371543803,1752342665056,-460.0,0.00018356,2]
[371543804,1752342665066,-1262.74,0.00018356,2]
[371543805,1752342665076,-460.0,0.00018356,2]
[371543806,1752342665086,-1502.81,0.00018356,2]
[371543807,1752342665095,-784.23,0.00018356,2]
[371543808,1752342665104,-460.0,0.00018356,2]
[371543809,1752342665114,-460.0,0.00018356,2]
[371543810,1752342665124,-460.0,0.00018356,2]
[371543811,1752342665134,-460.0,0.00018356,2]
[371543812,1752342665144,-796.69,0.00018356,2]
[371543813,1752342665153,-460.0,0.00018356,2]
[371543814,1752342665162,-460.0,0.00018356,2]
[371543815,1752342665172,-460.0,0.00018356,2]
[371543816,1752342665182,-460.0,0.00018356,2]
[371543817,1752342665193,-460.0,0.00018356,2]
[371543818,1752342665203,-460.0,0.00018356,2]
[371543819,1752342665213,-460.0,0.00018356,2]
[371543820,1752342665223,-460.0,0.00018356,2]
[371543821,1752342665232,-460.0,0.00018356,2]
[371543822,1752342665247,-476.85,0.00018356,2]
[371543823,1752342665256,-460.0,0.00018356,2]
[371543824,1752342665266,-460.0,0.00018356,2]
[371543825,1752342665275,-460.0,0.00018356,2]
[371543826,1752342665285,-460.0,0.00018356,2]
[371543827,1752342665295,-460.0,0.00018356,2]
[371543828,1752342665304,-700.96,0.00018356,2]
[371543829,1752342665314,-348.21,0.00018356,2]
[371543830,1752342665324,-484.14,0.00018356,2]
[371543831,1752342665338,-1811.02,0.00018356,2]
[371543832,1752342665349,-460.0,0.00018356,2]
[371543833,1752342665360,-662.41,0.00018356,2]
[371543834,1752342665369,-460.0,0.00018356,2]
[371543835,1752342665379,-460.0,0.00018356,2]
[371543836,1752342665389,-2662.91,0.00018356,2]
[371543837,1752342665498,-460.0,0.00018356,2]
[371543838,1752342665522,-460.0,0.00018356,2]
[371543839,1752342665532,-460.0,0.00018356,2]
[371543840,1752342665542,-460.0,0.00018356,2]
[371543841,1752342665551,-460.0,0.00018356,2]
[371543842,1752342665560,-460.0,0.00018356,2]
[371543843,1752342665570,-663.87,0.00018356,2]
[371543844,1752342665580,-460.0,0.00018356,2]
[371543845,1752342665589,-460.0,0.00018356,2]
[371543846,1752342665600,-1174.19,0.00018356,2]
[371543847,1752342665611,-460.0,0.00018356,2]
[371543848,1752342665621,-460.0,0.00018356,2]
[371543849,1752342665631,-524.87,0.00018356,2]
[371543850,1752342665640,-460.0,0.00018356,2]
[371543851,1752342665650,-657.53,0.00018356,2]
[371543852,1752342665660,-2444.99,0.00018356,2]
[371543853,1752342665669,-460.0,0.00018356,2]
[371543854,1752342665678,-460.0,0.00018356,2]
[371543855,1752342665688,-484.23,0.00018356,2]
[371543856,1752342665697,-460.0,0.00018356,2]
[371543857,1752342665707,-4019.98,0.00018356,2]
[371543858,1752342665716,-460.0,0.00018356,2]
[371543859,1752342665726,-460.0,0.00018356,2]
[371543860,1752342665735,-754.13,0.00018356,2]
[371543861,1752342665745,-460.0,0.00018356,2]
[371543862,1752342665755,-2667.23,0.00018356,2]
[371543863,1752342665765,-618.79,0.00018356,2]
[371543864,1752342665774,-468.03,0.00018356,2]
[371543865,1752342665783,-469.56,0.00018356,2]
[371543866,1752342665797,-460.0,0.00018356,2]
[371543867,1752342665807,-460.0,0.00018356,2]
[371543868,1752342665817,-981.16,0.00018356,2]
[371543869,1752342665826,-339.23679268,0.00018356,2]
[371543870,1752342665836,-460.0,0.00018356,2]
[371543871,1752342665845,-185.04194978,0.00018356,2]
[371543872,1752342665855,-460.0,0.00018356,2]
[371543873,1752342665865,-460.0,0.00018356,2]
[371543874,1752342665875,-460.0,0.00018356,2]
[371543875,1752342665883,-460.0,0.00018356,2]
[371543876,1752342665893,-460.0,0.00018356,2]
[371543877,1752342665902,-460.0,0.00018356,2]
[371543878,1752342665911,-460.0,0.00018356,2]
[371543879,1752342665921,-460.0,0.00018356,2]
[371543880,1752342665930,-460.0,0.00018356,2]
[371543881,1752342665940,-1433.31,0.00018356,2]
[371543882,1752342665949,-460.0,0.00018356,2]
[371543883,1752342665959,-460.0,0.00018356,2]
[371543884,1752342665969,-509.58,0.00018356,2]
[371543885,1752342665979,-1397.0,0.00018382,2]
[371543886,1752342665992,-1397.0,0.0001841,2]
[371543887,1752342666001,-227.331063,0.00018413,2]
[371543888,1752342666011,-2000.0,0.00018416,2]
[371543889,1752342666021,-2000.0,0.00018416,2]
[371543890,1752342666030,-2000.0,0.00018416,2]
[371543891,1752342666040,-2000.0,0.00018416,2]
[371543892,1752342666050,-1397.0,0.00018437,2]
[371543893,1752342666062,-1397.0,0.00018464,2]
[371543894,1752342666072,-1397.0,0.00018492,2]
[371543895,1752342666082,-227.331063,0.00018495,2]
[371543896,1752342666091,-1397.0,0.00018519,2]
[371543897,1752342666101,-1397.0,0.00018547,2]
[371543898,1752342666111,-1961.7256578,0.00018555,2]
[371543899,1752342666120,-1397.0,0.00018574,2]
[371543900,1752342666129,-227.331063,0.00018578,2]
[371543901,1752342666139,-1397.0,0.00018601,2]
[371543902,1752342666148,-1397.0,0.00018629,2]
[371543903,1752342666158,-629.83270293,0.0001863,2]
[371543904,1752342666168,-460.0,0.0001863,2]
[371543905,1752342666178,-460.0,0.0001863,2]
[371543906,1752342666188,-460.0,0.0001863,2]
[371543907,1752342666198,-460.0,0.0001863,2]
[371543908,1752342666208,-460.0,0.0001863,2]
[371543909,1752342666218,-460.0,0.0001863,2]
[371543910,1752342666227,-460.0,0.0001863,2]
[371543911,1752342666238,-460.0,0.0001863,2]
[371543912,1752342666255,-460.0,0.0001863,2]
[371543913,1752342666265,-460.0,0.0001863,2]
[371543914,1752342666276,-460.0,0.0001863,2]
[371543915,1752342666285,-460.0,0.0001863,2]
[371543916,1752342666295,-460.0,0.0001863,2]
[371543917,1752342666304,-498.78,0.0001863,2]
[371543918,1752342666314,-460.0,0.0001863,2]
[371543919,1752342666325,-460.0,0.0001863,2]
[371543920,1752342666336,-460.0,0.0001863,2]
[371543921,1752342666346,-460.0,0.0001863,2]
[371543922,1752342666355,-460.0,0.0001863,2]
[371543923,1752342666365,-460.0,0.0001863,2]
[371543924,1752342666375,-460.0,0.0001863,2]
[371543925,1752342666386,-460.0,0.0001863,2]
[371543926,1752342666396,-460.0,0.0001863,2]
[371543927,1752342666407,-708.97,0.0001863,2]
[371543928,1752342666419,-648.84,0.0001863,2]
[371543929,1752342666429,-460.0,0.0001863,2]
[371543930,1752342666440,-460.0,0.0001863,2]
[371543931,1752342666450,-460.0,0.0001863,2]
[371543932,1752342666459,-460.0,0.0001863,2]
[371543933,1752342666469,-686.51,0.0001863,2]
[371543934,1752342666480,-460.0,0.0001863,2]
[371543935,1752342666489,-460.0,0.0001863,2]
[371543936,1752342666499,-460.0,0.0001863,2]
[371543937,1752342666509,-460.0,0.0001863,2]
[371543938,1752342666519,-460.0,0.0001863,2]
[371543939,1752342666529,-687.54,0.0001863,2]
[371543940,1752342666539,-460.0,0.0001863,2]
[371543941,1752342666550,-460.0,0.0001863,2]
[371543942,1752342666559,-460.0,0.0001863,2]
[371543943,1752342666569,-460.0,0.0001863,2]
[371543944,1752342666578,-460.0,0.0001863,2]
[371543945,1752342666589,-460.0,0.0001863,2]
[371543946,1752342666598,-460.0,0.0001863,2]
[371543947,1752342666608,-753.34,0.0001863,2]
[371543948,1752342666621,-460.0,0.0001863,2]
[371543949,1752342666632,-460.0,0.0001863,2]
[371543950,1752342666642,-460.0,0.0001863,2]
[371543951,1752342666654,-460.0,0.0001863,2]
[371543952,1752342666663,-460.0,0.0001863,2]
[371543953,1752342666673,-713.78,0.0001863,2]
[371543954,1752342666683,-460.0,0.0001863,2]
[371543955,1752342666694,-460.0,0.0001863,2]
[371543956,1752342666704,-700.82,0.0001863,2]
[371543957,1752342666713,-840.0,0.0001863,2]
[371543958,1752342666723,-460.0,0.0001863,2]
[371543959,1752342666732,-5141.64,0.0001863,2]
[371543960,1752342666742,-460.0,0.0001863,2]
[371543961,1752342666752,-460.0,0.0001863,2]
[371543962,1752342666762,-460.0,0.0001863,2]
[371543963,1752342666772,-284.60690907,0.0001863,2]
[371543964,1752342666783,-460.0,0.0001863,2]
[371543965,1752342666795,-3105.07,0.0001863,2]
[371543966,1752342666806,-460.0,0.0001863,2]
[371543967,1752342666816,-460.0,0.0001863,2]
[371543968,1752342666826,-1400.32,0.0001863,2]
[371543969,1752342666837,-460.0,0.0001863,2]
[371543970,1752342666847,-460.0,0.0001863,2]
[371543971,1752342666858,-460.0,0.0001863,2]
[371543972,1752342666868,-460.0,0.0001863,2]
[371543973,1752342666878,-593.56,0.0001863,2]
[371543974,1752342666888,-1824.88,0.0001863,2]
[371543975,1752342666898,-460.0,0.0001863,2]
[371543976,1752342666908,-460.0,0.0001863,2]
[371543977,1752342666918,-1262.74,0.0001863,2]
[371543978,1752342666928,-460.0,0.0001863,2]
[371543979,1752342666938,-1502.81,0.0001863,2]
[371543980,1752342666948,-784.23,0.0001863,2]
[371543981,1752342666958,-460.0,0.0001863,2]
[371543982,1752342666969,-460.0,0.0001863,2]
[371543983,1752342666979,-460.0,0.0001863,2]
[371543984,1752342666993,-460.0,0.0001863,2]
[371543985,1752342667003,-796.69,0.0001863,2]
[371543986,1752342667013,-460.0,0.0001863,2]
[371543987,1752342667022,-460.0,0.0001863,2]
[371543988,1752342667032,-460.0,0.0001863,2]
[371543989,1752342667042,-460.0,0.0001863,2]
[371543990,1752342667052,-460.0,0.0001863,2]
[371543991,1752342667063,-191.54,0.0001863,2]
[371543992,1752342667072,-460.0,0.0001863,2]
[371543993,1752342667082,-460.0,0.0001863,2]
[371543994,1752342667091,-195.30322554,0.0001863,2]
[371543995,1752342667101,-476.85,0.0001863,2]
[371543996,1752342667111,-460.0,0.0001863,2]
[371543997,1752342667120,-460.0,0.0001863,2]
[371543998,1752342667130,-460.0,0.0001863,2]
[371543999,1752342667140,-460.0,0.0001863,2]
[371544000,1752342667149,-460.0,0.0001863,2]
[371544001,1752342667159,-700.96,0.0001863,2]
[371544002,1752342667169,-484.14,0.0001863,2]
[371544003,1752342667178,-1811.02,0.0001863,2]
[371544004,1752342667187,-662.41,0.0001863,2]
[371544005,1752342667197,-460.0,0.0001863,2]
[371544006,1752342667207,-2662.91,0.0001863,2]
[371544007,1752342667216,-460.0,0.0001863,2]
[371544008,1752342667226,-460.0,0.0001863,2]
[371544009,1752342667235,-460.0,0.0001863,2]
[371544010,1752342667245,-460.0,0.0001863,2]
[371544011,1752342667254,-460.0,0.0001863,2]
[371544012,1752342667264,-460.0,0.0001863,2]
[371544013,1752342667273,-663.87,0.0001863,2]
[371544014,1752342667282,-460.0,0.0001863,2]
[371544015,1752342667292,-460.0,0.0001863,2]
[371544016,1752342667302,-1174.19,0.0001863,2]
[371544017,1752342667311,-460.0,0.0001863,2]
[371544018,1752342667320,-460.0,0.0001863,2]
[371544019,1752342667330,-524.87,0.0001863,2]
[371544020,1752342667339,-460.0,0.0001863,2]
[371544021,1752342667348,-657.53,0.0001863,2]
[371544022,1752342667358,-2444.99,0.0001863,2]
[371544023,1752342667367,-460.0,0.0001863,2]
[371544024,1752342667377,-460.0,0.0001863,2]
[371544025,1752342667387,-484.23,0.0001863,2]
[371544026,1752342667396,-4019.98,0.0001863,2]
[371544027,1752342667406,-460.0,0.0001863,2]
[371544028,1752342667416,-460.0,0.0001863,2]
[371544029,1752342667425,-460.0,0.0001863,2]
[371544030,1752342667434,-754.13,0.0001863,2]
[371544031,1752342667445,-460.0,0.0001863,2]
[371544032,1752342667455,-2667.23,0.0001863,2]
[371544033,1752342667464,-618.79,0.0001863,2]
[371544034,1752342667474,-468.03,0.0001863,2]
[371544035,1752342667483,-469.56,0.0001863,2]
[371544036,1752342667493,-563.79720118,0.0001863,2]
[371544037,1752342667502,-981.16,0.0001863,2]
[371544038,1752342667511,-460.0,0.0001863,2]
[371544039,1752342667521,-151.0,0.0001863,2]
[371544040,1752342667530,-460.0,0.0001863,2]
[371544041,1752342667539,-151.0,0.0001863,2]
[371544042,1752342667549,-460.0,0.0001863,2]
[371544043,1752342667559,-460.0,0.0001863,2]
[371544044,1752342667568,-460.0,0.0001863,2]
[371544045,1752342667578,-460.0,0.0001863,2]
[371544046,1752342667587,-460.0,0.0001863,2]
[371544047,1752342667597,-460.0,0.0001863,2]
[371544048,1752342667607,-1433.31,0.0001863,2]
[371544049,1752342667615,-151.0,0.0001863,2]
[371544050,1752342667625,-460.0,0.0001863,2]
[371544051,1752342667635,-460.0,0.0001863,2]
[371544052,1752342667645,-509.58,0.0001863,2]
[371544053,1752342667654,-1400.0,0.00018656,2]
[371544054,1752342667665,-227.331063,0.0001866,2]
[371544055,1752342667674,-227.331063,0.00018742,2]
[371544056,1752342667684,-1500.0,0.00018742,2]
[371544057,1752342667694,-253.09215503,0.00018788,2]
[371544058,1752342667704,-1827.60029058,0.00018804,2]
[371544059,1752342667714,-1961.7256578,0.00018831,2]
[371544060,1752342667723,-679.9689388,0.000189,2]
[371544061,1752342667733,-460.0,0.00018904,2]
[371544062,1752342667741,-460.0,0.00018904,2]
[371544063,1752342667751,-460.0,0.00018904,2]
[371544064,1752342667760,-556.7,0.00018904,2]
[371544065,1752342667769,-460.0,0.00018904,2]
[371544066,1752342667779,-460.0,0.00018904,2]
[371544067,1752342667789,-460.0,0.00018904,2]
[371544068,1752342667902,-460.0,0.00018904,2]
[371544069,1752342667912,-581.95713535,0.00018904,2]
[371544070,1752342667923,-460.0,0.00018904,2]
[371544071,1752342667932,-460.0,0.00018904,2]
[371544072,1752342667943,-498.78,0.00018904,2]
[371544073,1752342667953,-460.0,0.00018904,2]
[371544074,1752342667962,-460.0,0.00018904,2]
[371544075,1752342667972,-460.0,0.00018904,2]
[371544076,1752342667983,-460.0,0.00018904,2]
[371544077,1752342667993,-460.0,0.00018904,2]
[371544078,1752342668003,-460.0,0.00018904,2]
[371544079,1752342668013,-460.0,0.00018904,2]
[371544080,1752342668023,-708.97,0.00018904,2]
[371544081,1752342668036,-648.84,0.00018904,2]
[371544082,1752342668047,-317.66006749,0.00018904,2]
[371544083,1752342668059,-460.0,0.00018904,2]
[371544084,1752342668069,-460.0,0.00018904,2]
[371544085,1752342668079,-686.51,0.00018904,2]
[371544086,1752342668089,-460.0,0.00018904,2]
[371544087,1752342668098,-460.0,0.00018904,2]
[371544088,1752342668108,-460.0,0.00018904,2]
[371544089,1752342668118,-460.0,0.00018904,2]
[371544090,1752342668128,-460.0,0.00018904,2]
[371544091,1752342668138,-687.54,0.00018904,2]
[371544092,1752342668148,-460.0,0.00018904,2]
[371544093,1752342668158,-460.0,0.00018904,2]
[371544094,1752342668168,-460.0,0.00018904,2]
[371544095,1752342668178,-460.0,0.00018904,2]
[371544096,1752342668189,-544.52,0.00018904,2]
[371544097,1752342668199,-460.0,0.00018904,2]
[371544098,1752342668209,-753.34,0.00018904,2]
[371544099,1752342668219,-460.0,0.00018904,2]
[371544100,1752342668228,-460.0,0.00018904,2]
[371544101,1752342668238,-460.0,0.00018904,2]
[371544102,1752342668247,-460.0,0.00018904,2]
[371544103,1752342668256,-460.0,0.00018904,2]
[371544104,1752342668265,-713.78,0.00018904,2]
[371544105,1752342668275,-460.0,0.00018904,2]
[371544106,1752342668285,-460.0,0.00018904,2]
[371544107,1752342668295,-700.82,0.00018904,2]
[371544108,1752342668306,-840.0,0.00018904,2]
[371544109,1752342668316,-460.0,0.00018904,2]
[371544110,1752342668325,-5141.64,0.00018904,2]
[371544111,1752342668335,-460.0,0.00018904,2]
[371544112,1752342668344,-460.0,0.00018904,2]
[371544113,1752342668354,-460.0,0.00018904,2]
[371544114,1752342668363,-460.0,0.00018904,2]
[371544115,1752342668372,-3105.07,0.00018904,2]
[371544116,1752342668382,-460.0,0.00018904,2]
[371544117,1752342668391,-460.0,0.00018904,2]
[371544118,1752342668401,-1400.32,0.00018904,2]
[371544119,1752342668410,-460.0,0.00018904,2]
[371544120,1752342668419,-460.0,0.00018904,2]
[371544121,1752342668429,-460.0,0.00018904,2]
[371544122,1752342668456,-593.56,0.00018904,2]
[371544123,1752342668479,-1824.88,0.00018904,2]
[371544124,1752342668502,-460.0,0.00018904,2]
[371544125,1752342668523,-460.0,0.00018904,2]
[371544126,1752342668544,-1262.74,0.00018904,2]
[371544127,1752342668564,-460.0,0.00018904,2]
[371544128,1752342668586,-1502.81,0.00018904,2]
[371544129,1752342668607,-784.23,0.00018904,2]
[371544130,1752342668628,-460.0,0.00018904,2]
[371544131,1752342668649,-460.0,0.00018904,2]
[371544132,1752342668671,-796.69,0.00018904,2]
[371544133,1752342668698,-460.0,0.00018904,2]
[371544134,1752342668728,-460.0,0.00018904,2]
[371544135,1752342668739,-460.0,0.00018904,2]
[371544136,1752342668749,-460.0,0.00018904,2]
[371544137,1752342668758,-460.0,0.00018904,2]
[371544138,1752342668767,-460.0,0.00018904,2]
[371544139,1752342668777,-476.85,0.00018904,2]
[371544140,1752342668786,-460.0,0.00018904,2]
[371544141,1752342668795,-460.0,0.00018904,2]
[371544142,1752342668805,-460.0,0.00018904,2]
[371544143,1752342668813,-460.0,0.00018904,2]
[371544144,1752342668823,-700.96,0.00018904,2]
[371544145,1752342668833,-1811.02,0.00018904,2]
[371544146,1752342668842,-484.14,0.00018904,2]
[371544147,1752342668852,-151.0,0.00018904,2]
[371544148,1752342668862,-662.41,0.00018904,2]
[371544149,1752342668872,-460.0,0.00018904,2]
[371544150,1752342668882,-2662.91,0.00018904,2]
[371544151,1752342668892,-460.0,0.00018904,2]
[371544152,1752342668901,-460.0,0.00018904,2]
[371544153,1752342668911,-460.0,0.00018904,2]
[371544154,1752342668921,-460.0,0.00018904,2]
[371544155,1752342668931,-460.0,0.00018904,2]
[371544156,1752342668943,-663.87,0.00018904,2]
[371544157,1752342668952,-460.0,0.00018904,2]
[371544158,1752342668962,-460.0,0.00018904,2]
[371544159,1752342668972,-1174.19,0.00018904,2]
[371544160,1752342668983,-151.0,0.00018904,2]
[371544161,1752342668994,-460.0,0.00018904,2]
[371544162,1752342669004,-460.0,0.00018904,2]
[371544163,1752342669013,-151.0,0.00018904,2]
[371544164,1752342669022,-524.87,0.00018904,2]
[371544165,1752342669034,-460.0,0.00018904,2]
[371544166,1752342669044,-657.53,0.00018904,2]
[371544167,1752342669053,-151.0,0.00018904,2]
[371544168,1752342669064,-151.0,0.00018904,2]
[371544169,1752342669074,-2444.99,0.00018904,2]
[371544170,1752342669083,-460.0,0.00018904,2]
[371544171,1752342669093,-460.0,0.00018904,2]
[371544172,1752342669103,-484.23,0.00018904,2]
[371544173,1752342669113,-4019.98,0.00018904,2]
[371544174,1752342669122,-460.0,0.00018904,2]
[371544175,1752342669132,-460.0,0.00018904,2]
[371544176,1752342669142,-151.0,0.00018904,2]
[371544177,1752342669152,-151.0,0.00018904,2]
[371544178,1752342669162,-151.0,0.00018904,2]
[371544179,1752342669172,-460.0,0.00018904,2]
[371544180,1752342669181,-754.13,0.00018904,2]
[371544181,1752342669191,-151.0,0.00018904,2]
[371544182,1752342669201,-460.0,0.00018904,2]
[371544183,1752342669210,-2667.23,0.00018904,2]
[371544184,1752342669219,-618.79,0.00018904,2]
[371544185,1752342669229,-468.03,0.00018904,2]
[371544186,1752342669238,-469.56,0.00018904,2]
[371544187,1752342669248,-234.814105,0.00018904,2]
[371544188,1752342669257,-234.814105,0.00018904,2]
[371544189,1752342669267,-981.16,0.00018904,2]
[371544190,1752342669276,-460.0,0.00018904,2]
[371544191,1752342669286,-460.0,0.00018904,2]
[371544192,1752342669296,-151.0,0.00018904,2]
[371544193,1752342669309,-460.0,0.00018904,2]
[371544194,1752342669319,-460.0,0.00018904,2]
[371544195,1752342669328,-460.0,0.00018904,2]
[371544196,1752342669337,-460.0,0.00018904,2]
[371544197,1752342669346,-460.0,0.00018904,2]
[371544198,1752342669355,-460.0,0.00018904,2]
[371544199,1752342669365,-1433.31,0.00018904,2]
[371544200,1752342669374,-460.0,0.00018904,2]
[371544201,1752342669383,-460.0,0.00018904,2]
[371544202,1752342669392,-509.58,0.00018904,2]
[371544203,1752342669401,-2500.0,0.00018964,2]
[371544204,1752342669410,-1000.0,0.00018964,2]
[371544205,1752342669420,-2500.0,0.00018964,2]
[371544206,1752342669429,-2500.0,0.00018964,2]
[371544207,1752342669440,-1961.7256578,0.00019107,2]
[371544208,1752342669450,-151.0,0.00019178,2]
[371544209,1752342669459,-151.0,0.00019178,2]
[371544210,1752342669468,-460.0,0.00019178,2]
[371544211,1752342669478,-460.0,0.00019178,2]
[371544212,1752342669488,-196.23,0.00019178,2]
[371544213,1752342669497,-460.0,0.00019178,2]
[371544214,1752342669506,-460.0,0.00019178,2]
[371544215,1752342669516,-460.0,0.00019178,2]
[371544216,1752342669525,-460.0,0.00019178,2]
[371544217,1752342669535,-498.78,0.00019178,2]
[371544218,1752342669544,-460.0,0.00019178,2]
[371544219,1752342669553,-460.0,0.00019178,2]
[371544220,1752342669562,-460.0,0.00019178,2]
[371544221,1752342669572,-460.0,0.00019178,2]
[371544222,1752342669582,-460.0,0.00019178,2]
[371544223,1752342669592,-460.0,0.00019178,2]
[371544224,1752342669601,-460.0,0.00019178,2]
[371544225,1752342669611,-708.97,0.00019178,2]
[371544226,1752342669621,-648.84,0.00019178,2]
[371544227,1752342669630,-460.0,0.00019178,2]
[371544228,1752342669640,-460.0,0.00019178,2]
[371544229,1752342669650,-686.51,0.00019178,2]
[371544230,1752342669659,-309.43847576,0.00019178,2]
[371544231,1752342669668,-460.0,0.00019178,2]
[371544232,1752342669678,-460.0,0.00019178,2]
[371544233,1752342669688,-460.0,0.00019178,2]
[371544234,1752342669698,-151.0,0.00019178,2]
[371544235,1752342669709,-151.0,0.00019178,2]
[371544236,1752342669719,-460.0,0.00019178,2]
[371544237,1752342669728,-687.54,0.00019178,2]
[371544238,1752342669738,-460.0,0.00019178,2]
[371544239,1752342669747,-460.0,0.00019178,2]
[371544240,1752342669757,-460.0,0.00019178,2]
[371544241,1752342669767,-151.0,0.00019178,2]
[371544242,1752342669776,-460.0,0.00019178,2]
[371544243,1752342669785,-151.0,0.00019178,2]
[371544244,1752342669795,-151.0,0.00019178,2]
[371544245,1752342669804,-753.34,0.00019178,2]
[371544246,1752342669814,-460.0,0.00019178,2]
[371544247,1752342669823,-451.58564027,0.00019178,2]
[371544248,1752342669833,-460.0,0.00019178,2]
[371544249,1752342669842,-460.0,0.00019178,2]
[371544250,1752342669853,-460.0,0.00019178,2]
[371544251,1752342669862,-713.78,0.00019178,2]
[371544252,1752342669872,-460.0,0.00019178,2]
[371544253,1752342669882,-460.0,0.00019178,2]
[371544254,1752342669891,-700.82,0.00019178,2]
[371544255,1752342669900,-840.0,0.00019178,2]
[371544256,1752342669909,-460.0,0.00019178,2]
[371544257,1752342669918,-5141.64,0.00019178,2]
[371544258,1752342669928,-460.0,0.00019178,2]
[371544259,1752342669937,-460.0,0.00019178,2]
[371544260,1752342669946,-301.566349,0.00019178,2]
[371544261,1752342669955,-460.0,0.00019178,2]
[371544262,1752342669965,-301.566349,0.00019178,2]
[371544263,1752342669975,-151.0,0.00019178,2]
[371544264,1752342669989,-460.0,0.00019178,2]
[371544265,1752342670004,-3105.07,0.00019178,2]
[371544266,1752342670013,-460.0,0.00019178,2]
[371544267,1752342670023,-460.0,0.00019178,2]
[371544268,1752342670033,-1400.32,0.00019178,2]
[371544269,1752342670043,-460.0,0.00019178,2]
[371544270,1752342670052,-151.0,0.00019178,2]
[371544271,1752342670062,-460.0,0.00019178,2]
[371544272,1752342670073,-460.0,0.00019178,2]
[371544273,1752342670083,-593.56,0.00019178,2]
[371544274,1752342670092,-1824.88,0.00019178,2]
[371544275,1752342670101,-460.0,0.00019178,2]
[371544276,1752342670110,-1262.74,0.00019178,2]
[371544277,1752342670120,-460.0,0.00019178,2]
[371544278,1752342670130,-1502.81,0.00019178,2]
[371544279,1752342670139,-784.23,0.00019178,2]
[371544280,1752342670149,-154.97041025,0.00019178,2]
[371544281,1752342670256,-460.0,0.00019178,2]
[371544282,1752342670266,-151.0,0.00019178,2]
[371544283,1752342670275,-796.69,0.00019178,2]
[371544284,1752342670285,-460.0,0.00019178,2]
[371544285,1752342670294,-151.0,0.00019178,2]
[371544286,1752342670304,-460.0,0.00019178,2]
[371544287,1752342670313,-460.0,0.00019178,2]
[371544288,1752342670322,-460.0,0.00019178,2]
[371544289,1752342670332,-460.0,0.00019178,2]
[371544290,1752342670342,-151.0,0.00019178,2]
[371544291,1752342670352,-460.0,0.00019178,2]
[371544292,1752342670361,-151.0,0.00019178,2]
[371544293,1752342670370,-476.85,0.00019178,2]
[371544294,1752342670380,-460.0,0.00019178,2]
[371544295,1752342670390,-460.0,0.00019178,2]